[Event "*** Titled Tuesday Blitz"]
[Site "Chess.com"]
[Date "2019.01.01"]
[Round "1"]
[White "VeraNebolsina"]
[Black "gmjlh"]
[Result "1-0"]
[WhiteElo "2347"]
[BlackElo "2656"]
[TimeControl "180+2"]
[EndTime "13:08:53 PST"]
[Termination "VeraNebolsina won by checkmate"]

1. e4 {[%clk 0:03:00.8]} 1... c5 {[%clk 0:02:59.1]} 2. Nc3 {[%clk 0:03:01]} 2...
Nc6 {[%clk 0:02:59.4]} 3. Bb5 {[%clk 0:03:00.7]} 3... Nd4 {[%clk 0:02:58.5]} 4.
Nf3 {[%clk 0:03:00.9]} 4... e6 {[%clk 0:02:56.3]} 5. O-O {[%clk 0:03:00.1]} 5...
Ne7 {[%clk 0:02:53.9]} 6. Nxd4 {[%clk 0:02:59]} 6... cxd4 {[%clk 0:02:54.3]} 7.
Ne2 {[%clk 0:03:00.6]} 7... Qb6 {[%clk 0:02:52.2]} 8. Bd3 {[%clk 0:02:56.5]}
8... Nc6 {[%clk 0:02:52.5]} 9. c3 {[%clk 0:02:56.6]} 9... Bd6 {[%clk 0:02:30.4]}
10. b4 {[%clk 0:02:51]} 10... O-O {[%clk 0:02:24.6]} 11. Bb1 {[%clk 0:02:35.3]}
11... a5 {[%clk 0:02:12.1]} 12. b5 {[%clk 0:02:30.9]} 12... Qxb5 {[%clk
0:02:02.3]} 13. Nxd4 {[%clk 0:02:26]} 13... Nxd4 {[%clk 0:02:01.5]} 14. cxd4
{[%clk 0:02:27]} 14... Qb4 {[%clk 0:01:30.2]} 15. e5 {[%clk 0:02:11.8]} 15...
Be7 {[%clk 0:01:31.1]} 16. Qc2 {[%clk 0:01:51.8]} 16... g6 {[%clk 0:01:29.8]}
17. Qc3 {[%clk 0:01:52.9]} 17... b6 {[%clk 0:01:06.1]} 18. a4 {[%clk 0:01:45.4]}
18... Ba6 {[%clk 0:01:05.4]} 19. Re1 {[%clk 0:01:41.3]} 19... Rac8 {[%clk
0:01:00.1]} 20. Qe3 {[%clk 0:01:32.9]} 20... Qc4 {[%clk 0:00:33.1]} 21. Ba2
{[%clk 0:01:15.9]} 21... Qxa4 {[%clk 0:00:32.3]} 22. Bb2 {[%clk 0:01:08.5]}
22... Qc6 {[%clk 0:00:15.7]} 23. d5 {[%clk 0:01:05.3]} 23... Qc5 {[%clk
0:00:11.9]} 24. Bd4 {[%clk 0:01:04.5]} 24... Qb4 {[%clk 0:00:10.3]} 25. Reb1
{[%clk 0:00:54.9]} 25... Bg5 {[%clk 0:00:07.1]} 26. f4 {[%clk 0:00:52.1]} 26...
Qa4 {[%clk 0:00:03.6]} 27. fxg5 {[%clk 0:00:48.9]} 27... Bc4 {[%clk 0:00:05.1]}
28. Bb3 {[%clk 0:00:42.5]} 28... Qb5 {[%clk 0:00:04.8]} 29. Bxc4 {[%clk
0:00:40.7]} 29... Qxc4 {[%clk 0:00:06.7]} 30. Bxb6 {[%clk 0:00:35.3]} 30... Qxd5
{[%clk 0:00:06.7]} 31. Rxa5 {[%clk 0:00:33.6]} 31... Qc4 {[%clk 0:00:08.2]} 32.
Rc5 {[%clk 0:00:32.1]} 32... Rxc5 {[%clk 0:00:08.9]} 33. Bxc5 {[%clk 0:00:33.3]}
33... Rc8 {[%clk 0:00:09.8]} 34. d4 {[%clk 0:00:32.2]} 34... Ra8 {[%clk
0:00:09]} 35. Qf3 {[%clk 0:00:30.8]} 35... Re8 {[%clk 0:00:05.4]} 36. Rf1 {[%clk
0:00:30]} 36... f5 {[%clk 0:00:06.9]} 37. gxf6 {[%clk 0:00:30.3]} 37... Kf7
{[%clk 0:00:08.2]} 38. Qh3 {[%clk 0:00:30.2]} 38... h5 {[%clk 0:00:09.4]} 39.
Qe3 {[%clk 0:00:31.1]} 39... Rh8 {[%clk 0:00:10.9]} 40. Ra1 {[%clk 0:00:24.4]}
40... h4 {[%clk 0:00:12]} 41. h3 {[%clk 0:00:24.7]} 41... Rh5 {[%clk 0:00:12.1]}
42. Ra8 {[%clk 0:00:24]} 42... g5 {[%clk 0:00:05.6]} 43. Rf8+ {[%clk 0:00:23.4]}
43... Kg6 {[%clk 0:00:06.6]} 44. Qe4+ {[%clk 0:00:23.1]} 44... Kh6 {[%clk
0:00:07.4]} 45. Rh8# {[%clk 0:00:24.1]} 1-0

[Event "*** Titled Tuesday Blitz"]
[Site "Chess.com"]
[Date "2019.01.01"]
[Round "1"]
[White "BlackBoarder"]
[Black "Raffael89"]
[Result "1-0"]
[WhiteElo "2564"]
[BlackElo "2195"]
[TimeControl "180+2"]
[EndTime "13:08:54 PST"]
[Termination "BlackBoarder won by resignation"]

1. e4 {[%clk 0:02:56.4]} 1... d5 {[%clk 0:03:00.9]} 2. exd5 {[%clk 0:02:54.4]}
2... Qxd5 {[%clk 0:03:02.8]} 3. Nf3 {[%clk 0:02:55]} 3... Bg4 {[%clk 0:03:02.9]}
4. Be2 {[%clk 0:02:54.4]} 4... Nc6 {[%clk 0:03:02.6]} 5. h3 {[%clk 0:02:55.4]}
5... Bxf3 {[%clk 0:03:03]} 6. Bxf3 {[%clk 0:02:56.6]} 6... Qe5+ {[%clk
0:03:04.5]} 7. Qe2 {[%clk 0:02:55]} 7... Qxe2+ {[%clk 0:03:05]} 8. Bxe2 {[%clk
0:02:56.9]} 8... O-O-O {[%clk 0:03:05.9]} 9. c3 {[%clk 0:02:54.9]} 9... e5
{[%clk 0:03:07.2]} 10. d3 {[%clk 0:02:54.7]} 10... g6 {[%clk 0:03:08.7]} 11. h4
{[%clk 0:02:51.8]} 11... Bh6 {[%clk 0:03:09.9]} 12. Bxh6 {[%clk 0:02:49.9]}
12... Nxh6 {[%clk 0:03:11.8]} 13. Nd2 {[%clk 0:02:49.4]} 13... f5 {[%clk
0:03:09.4]} 14. h5 {[%clk 0:02:47.2]} 14... Nf7 {[%clk 0:03:10]} 15. Nc4 {[%clk
0:02:44.4]} 15... a6 {[%clk 0:03:03.2]} 16. Kd2 {[%clk 0:02:42.2]} 16... b5
{[%clk 0:02:58.5]} 17. Ne3 {[%clk 0:02:41.1]} 17... Ne7 {[%clk 0:02:36]} 18. Kc2
{[%clk 0:02:36.5]} 18... Nd5 {[%clk 0:02:31.2]} 19. Nxd5 {[%clk 0:02:26.8]}
19... Rxd5 {[%clk 0:02:33.1]} 20. hxg6 {[%clk 0:02:27.9]} 20... hxg6 {[%clk
0:02:32.2]} 21. Rxh8+ {[%clk 0:02:29.8]} 21... Nxh8 {[%clk 0:02:34]} 22. Rh1
{[%clk 0:02:31.7]} 22... Nf7 {[%clk 0:02:34.1]} 23. Rh7 {[%clk 0:02:30.2]} 23...
Nd8 {[%clk 0:02:32.3]} 24. Rg7 {[%clk 0:02:29.7]} 24... Rd6 {[%clk 0:02:33.3]}
25. a4 {[%clk 0:02:18.3]} 25... Ne6 {[%clk 0:02:32.8]} 26. Rg8+ {[%clk
0:02:13.9]} 26... Kb7 {[%clk 0:02:33.3]} 27. Bf3+ {[%clk 0:02:12]} 27... c6
{[%clk 0:02:30.5]} 28. a5 {[%clk 0:02:05.8]} 28... Nf4 {[%clk 0:02:16.9]} 29.
Rg7+ {[%clk 0:01:50]} 29... Kb8 {[%clk 0:02:17.3]} 30. d4 {[%clk 0:01:36.6]}
30... e4 {[%clk 0:02:01.7]} 31. g3 {[%clk 0:01:33.7]} 31... Nd3 {[%clk
0:01:47.8]} 32. Be2 {[%clk 0:01:28.4]} 32... Nxf2 {[%clk 0:01:48.7]} 33. Kd2
{[%clk 0:01:28.8]} 33... Nh3 {[%clk 0:01:34.5]} 34. Ke3 {[%clk 0:01:27]} 34...
Ng5 {[%clk 0:01:30.7]} 35. Rg8+ {[%clk 0:01:16.9]} 35... Kc7 {[%clk 0:01:31.3]}
36. Kf4 {[%clk 0:01:11.8]} 36... Ne6+ {[%clk 0:01:30.1]} 37. Ke5 {[%clk
0:01:12.4]} 37... Kd7 {[%clk 0:01:17.5]} 38. Rxg6 {[%clk 0:00:31.8]} 38... Ke7
{[%clk 0:01:05.9]} 39. Kxf5 {[%clk 0:00:21.5]} 39... e3 {[%clk 0:00:37.6]} 40.
Rg4 {[%clk 0:00:17.4]} 40... c5 {[%clk 0:00:32.7]} 41. Re4 {[%clk 0:00:13.6]}
41... cxd4 {[%clk 0:00:33.2]} 42. cxd4 {[%clk 0:00:15.1]} 42... Kd7 {[%clk
0:00:30]} 43. Ke5 {[%clk 0:00:13.3]} 43... Nxd4 {[%clk 0:00:24.4]} 44. Rxd4
{[%clk 0:00:13.6]} 1-0

[Event "*** Titled Tuesday Blitz"]
[Site "Chess.com"]
[Date "2019.01.01"]
[Round "1"]
[White "PrascaR"]
[Black "Parhamov"]
[Result "0-1"]
[WhiteElo "2453"]
[BlackElo "2909"]
[TimeControl "180+2"]
[EndTime "13:08:55 PST"]
[Termination "Parhamov won on time"]

1. e4 {[%clk 0:02:54.7]} 1... c5 {[%clk 0:03:00.4]} 2. Nf3 {[%clk 0:02:54.4]}
2... d6 {[%clk 0:02:34.4]} 3. Nc3 {[%clk 0:02:53.6]} 3... Nf6 {[%clk 0:02:34.5]}
4. d4 {[%clk 0:02:52.2]} 4... cxd4 {[%clk 0:02:35.3]} 5. Nxd4 {[%clk 0:02:52.4]}
5... Nc6 {[%clk 0:02:36.6]} 6. g3 {[%clk 0:02:49]} 6... Bg4 {[%clk 0:02:34.6]}
7. f3 {[%clk 0:02:46.7]} 7... Bd7 {[%clk 0:02:35.3]} 8. Be3 {[%clk 0:02:22]}
8... a6 {[%clk 0:02:34.2]} 9. g4 {[%clk 0:02:01.9]} 9... g6 {[%clk 0:02:31.5]}
10. Qd2 {[%clk 0:01:59.7]} 10... Rc8 {[%clk 0:02:31.8]} 11. Nxc6 {[%clk
0:01:59]} 11... Bxc6 {[%clk 0:02:28.1]} 12. O-O-O {[%clk 0:01:59.1]} 12... Bg7
{[%clk 0:02:25.5]} 13. h4 {[%clk 0:02:00.1]} 13... h5 {[%clk 0:02:26.1]} 14. g5
{[%clk 0:01:49.7]} 14... Nd7 {[%clk 0:02:27]} 15. Bd4 {[%clk 0:01:50.8]} 15...
Ne5 {[%clk 0:02:15.5]} 16. Be2 {[%clk 0:01:51.4]} 16... O-O {[%clk 0:02:11.6]}
17. f4 {[%clk 0:01:49.8]} 17... Nd7 {[%clk 0:02:12.8]} 18. Bxg7 {[%clk
0:01:50.4]} 18... Kxg7 {[%clk 0:02:14]} 19. Qd4+ {[%clk 0:01:43.1]} 19... Kg8
{[%clk 0:02:13.9]} 20. Rhg1 {[%clk 0:01:34.9]} 20... Qb6 {[%clk 0:02:13.8]} 21.
Nd5 {[%clk 0:01:16.1]} 21... Bxd5 {[%clk 0:02:13.7]} 22. exd5 {[%clk 0:01:16.6]}
22... Qxd4 {[%clk 0:02:00.3]} 23. Rxd4 {[%clk 0:01:18.5]} 23... a5 {[%clk
0:02:01.5]} 24. Re1 {[%clk 0:01:15.5]} 24... Nc5 {[%clk 0:02:01.2]} 25. Bb5
{[%clk 0:01:15.5]} 25... Rc7 {[%clk 0:02:02.1]} 26. c3 {[%clk 0:01:15.4]} 26...
Rd8 {[%clk 0:02:01.5]} 27. Rd2 {[%clk 0:01:15.2]} 27... e6 {[%clk 0:02:02]} 28.
Kb1 {[%clk 0:01:12.3]} 28... Kf8 {[%clk 0:02:00.7]} 29. Bf1 {[%clk 0:01:08.8]}
29... a4 {[%clk 0:01:50]} 30. Bh3 {[%clk 0:01:02.4]} 30... exd5 {[%clk
0:01:49.6]} 31. Rxd5 {[%clk 0:01:02.4]} 31... Re7 {[%clk 0:01:46.1]} 32. Rxe7
{[%clk 0:01:03.1]} 32... Kxe7 {[%clk 0:01:47.1]} 33. f5 {[%clk 0:01:04.7]} 33...
gxf5 {[%clk 0:01:45.6]} 34. Bxf5 {[%clk 0:01:05.3]} 34... b5 {[%clk 0:01:43.2]}
35. Kc2 {[%clk 0:01:05]} 35... Rb8 {[%clk 0:01:42.6]} 36. b4 {[%clk 0:01:05.2]}
36... axb3+ {[%clk 0:01:43]} 37. axb3 {[%clk 0:01:07.1]} 37... b4 {[%clk
0:01:44.7]} 38. Rd4 {[%clk 0:00:53.8]} 38... bxc3 {[%clk 0:01:45.7]} 39. b4
{[%clk 0:00:54.5]} 39... Na6 {[%clk 0:01:34.1]} 40. Kxc3 {[%clk 0:00:54.8]}
40... Nc7 {[%clk 0:01:35.5]} 41. Kc4 {[%clk 0:00:38.8]} 41... Na6 {[%clk
0:01:29.5]} 42. Kc3 {[%clk 0:00:37.7]} 42... Nc7 {[%clk 0:01:30.5]} 43. Kc4
{[%clk 0:00:37.9]} 43... Rb5 {[%clk 0:01:24.2]} 44. Bd3 {[%clk 0:00:32]} 44...
d5+ {[%clk 0:01:20.2]} 45. Kb3 {[%clk 0:00:31.2]} 45... Rb8 {[%clk 0:01:20.9]}
46. Ka4 {[%clk 0:00:31.4]} 46... Kd6 {[%clk 0:01:11.2]} 47. Rf4 {[%clk
0:00:28.9]} 47... Ke7 {[%clk 0:01:08]} 48. b5 {[%clk 0:00:24.6]} 48... Ne6
{[%clk 0:01:09]} 49. Rf3 {[%clk 0:00:11.8]} 49... Kd6 {[%clk 0:01:09.9]} 50. Kb4
{[%clk 0:00:04]} 50... Rb7 {[%clk 0:01:11.2]} 0-1

[Event "*** Titled Tuesday Blitz"]
[Site "Chess.com"]
[Date "2019.01.01"]
[Round "1"]
[White "Atanejhad"]
[Black "TrimitziosP7"]
[Result "0-1"]
[WhiteElo "2249"]
[BlackElo "2604"]
[TimeControl "180+2"]
[EndTime "13:08:59 PST"]
[Termination "TrimitziosP7 won by resignation"]

1. d4 {[%clk 0:03:00]} 1... Nf6 {[%clk 0:03:00.7]} 2. c4 {[%clk 0:03:00.3]} 2...
e6 {[%clk 0:03:01.3]} 3. Nf3 {[%clk 0:03:00.8]} 3... c5 {[%clk 0:03:00.2]} 4. d5
{[%clk 0:03:01.9]} 4... exd5 {[%clk 0:02:54.4]} 5. cxd5 {[%clk 0:03:01.4]} 5...
d6 {[%clk 0:02:50.6]} 6. Nc3 {[%clk 0:03:01.8]} 6... g6 {[%clk 0:02:48.9]} 7. h3
{[%clk 0:03:02.2]} 7... Bg7 {[%clk 0:02:45.3]} 8. e4 {[%clk 0:03:03]} 8... O-O
{[%clk 0:02:41.7]} 9. Bd3 {[%clk 0:03:04.5]} 9... b5 {[%clk 0:02:38.7]} 10. Nxb5
{[%clk 0:03:05.4]} 10... Re8 {[%clk 0:02:36.6]} 11. O-O {[%clk 0:03:04.2]} 11...
Nxe4 {[%clk 0:02:34.4]} 12. Re1 {[%clk 0:03:05.3]} 12... a6 {[%clk 0:02:32]} 13.
Na3 {[%clk 0:02:23.2]} 13... Nf6 {[%clk 0:02:28.4]} 14. Rxe8+ {[%clk 0:02:24.6]}
14... Nxe8 {[%clk 0:02:27.9]} 15. Bg5 {[%clk 0:02:24.5]} 15... Qc7 {[%clk
0:02:25.7]} 16. Nc4 {[%clk 0:02:25.1]} 16... Bb7 {[%clk 0:02:21.5]} 17. Rc1
{[%clk 0:02:25.7]} 17... Nd7 {[%clk 0:02:16.6]} 18. Bf1 {[%clk 0:02:21.3]} 18...
Ndf6 {[%clk 0:02:09.2]} 19. Ne3 {[%clk 0:02:17.7]} 19... h6 {[%clk 0:02:00.5]}
20. Bf4 {[%clk 0:02:15.5]} 20... Nh5 {[%clk 0:02:00.7]} 21. Bh2 {[%clk
0:02:12.5]} 21... Bxb2 {[%clk 0:01:59.1]} 22. Rb1 {[%clk 0:02:11.3]} 22... Bg7
{[%clk 0:01:58.4]} 23. Nd2 {[%clk 0:02:09.1]} 23... Nhf6 {[%clk 0:01:54]} 24.
Qb3 {[%clk 0:02:05.5]} 24... Bc8 {[%clk 0:01:51.2]} 25. Qb6 {[%clk 0:02:05.6]}
25... Bf8 {[%clk 0:01:33.4]} 26. Ndc4 {[%clk 0:02:01]} 26... Ne4 {[%clk
0:01:27.8]} 27. Bd3 {[%clk 0:01:50.2]} 27... Nc3 {[%clk 0:01:24.9]} 28. Qxc7
{[%clk 0:01:45.7]} 28... Nxc7 {[%clk 0:01:25.3]} 29. Rb6 {[%clk 0:01:46.1]}
29... N3xd5 {[%clk 0:01:23.6]} 30. Nxd5 {[%clk 0:01:12.8]} 30... Nxd5 {[%clk
0:01:25.5]} 31. Rb3 {[%clk 0:01:11.5]} 31... Be6 {[%clk 0:01:16.5]} 32. Bxd6
{[%clk 0:01:03.5]} 32... Nb4 {[%clk 0:01:14.5]} 33. Bxf8 {[%clk 0:01:01.7]}
33... Rxf8 {[%clk 0:01:15.9]} 34. Be2 {[%clk 0:00:16.1]} 34... Nxa2 {[%clk
0:01:15.4]} 35. Ra3 {[%clk 0:00:16.9]} 35... Nb4 {[%clk 0:01:15.9]} 36. Ra5
{[%clk 0:00:15.3]} 36... Bxc4 {[%clk 0:01:14.9]} 37. Bxc4 {[%clk 0:00:15.4]}
37... Rc8 {[%clk 0:01:16.2]} 38. g4 {[%clk 0:00:11.1]} 38... Rc6 {[%clk
0:01:16.5]} 39. h4 {[%clk 0:00:06.6]} 39... Kf8 {[%clk 0:01:16.9]} 40. f4 {[%clk
0:00:07.2]} 40... f6 {[%clk 0:01:16.9]} 41. h5 {[%clk 0:00:03.2]} 41... g5
{[%clk 0:01:17.6]} 42. fxg5 {[%clk 0:00:03.8]} 42... fxg5 {[%clk 0:01:19.5]} 43.
Kf2 {[%clk 0:00:05.3]} 43... Ke7 {[%clk 0:01:20.8]} 44. Ke3 {[%clk 0:00:06.3]}
44... Kf6 {[%clk 0:01:19.5]} 45. Ke4 {[%clk 0:00:07.5]} 45... Ke7 {[%clk
0:01:13.6]} 46. Kf5 {[%clk 0:00:08.4]} 46... Kd7 {[%clk 0:01:12.3]} 47. Ke5
{[%clk 0:00:08.7]} 47... Kc7 {[%clk 0:01:11.8]} 48. Be6 {[%clk 0:00:08.4]} 48...
Kb6 {[%clk 0:01:09.7]} 49. Ra1 {[%clk 0:00:07.9]} 49... c4 {[%clk 0:01:06.9]}
50. Bf5 {[%clk 0:00:07.8]} 50... c3 {[%clk 0:01:06.7]} 51. Rb1 {[%clk
0:00:07.7]} 51... a5 {[%clk 0:01:07.3]} 52. Be6 {[%clk 0:00:07.9]} 52... c2
{[%clk 0:01:07.4]} 53. Rc1 {[%clk 0:00:09.2]} 53... Nd3+ {[%clk 0:01:08.1]} 0-1

[Event "*** Titled Tuesday Blitz"]
[Site "Chess.com"]
[Date "2019.01.01"]
[Round "1"]
[White "NTBT_DHS"]
[Black "Manukyan_Artak"]
[Result "1-0"]
[WhiteElo "2715"]
[BlackElo "2363"]
[TimeControl "180+2"]
[EndTime "13:09:01 PST"]
[Termination "NTBT_DHS won by resignation"]

1. d4 {[%clk 0:02:58.7]} 1... d6 {[%clk 0:02:59.4]} 2. Nf3 {[%clk 0:02:58.7]}
2... Bg4 {[%clk 0:02:59.2]} 3. Nbd2 {[%clk 0:02:55.5]} 3... Nf6 {[%clk
0:02:57.2]} 4. h3 {[%clk 0:02:54.4]} 4... Bxf3 {[%clk 0:02:56.3]} 5. exf3 {[%clk
0:02:55.5]} 5... g6 {[%clk 0:02:52.2]} 6. Bd3 {[%clk 0:02:56.8]} 6... Bg7 {[%clk
0:02:53.5]} 7. O-O {[%clk 0:02:58.2]} 7... O-O {[%clk 0:02:54.7]} 8. Re1 {[%clk
0:02:59.8]} 8... d5 {[%clk 0:02:54.7]} 9. c3 {[%clk 0:02:59.6]} 9... e6 {[%clk
0:02:55.7]} 10. Nf1 {[%clk 0:02:51.4]} 10... Nbd7 {[%clk 0:02:54.9]} 11. Bf4
{[%clk 0:02:52.4]} 11... c5 {[%clk 0:02:55.2]} 12. Qd2 {[%clk 0:02:50.1]} 12...
Qb6 {[%clk 0:02:55.2]} 13. dxc5 {[%clk 0:02:50.5]} 13... Nxc5 {[%clk 0:02:56.2]}
14. Be2 {[%clk 0:02:43.1]} 14... a5 {[%clk 0:02:53.5]} 15. Rab1 {[%clk
0:02:39.5]} 15... Rfc8 {[%clk 0:02:48.4]} 16. Be3 {[%clk 0:02:35.8]} 16... Qc6
{[%clk 0:02:41.4]} 17. Rec1 {[%clk 0:02:35.5]} 17... Qe8 {[%clk 0:02:26.7]} 18.
b4 {[%clk 0:02:24.3]} 18... axb4 {[%clk 0:02:20.7]} 19. cxb4 {[%clk 0:02:26.2]}
19... Na4 {[%clk 0:02:15.6]} 20. Bd4 {[%clk 0:02:24.5]} 20... b5 {[%clk
0:02:12.3]} 21. Bd3 {[%clk 0:02:08.2]} 21... Rab8 {[%clk 0:01:52.6]} 22. Qe3
{[%clk 0:02:04.5]} 22... Nd7 {[%clk 0:01:48.2]} 23. Bxg7 {[%clk 0:02:02.1]}
23... Kxg7 {[%clk 0:01:49]} 24. Nd2 {[%clk 0:01:42.2]} 24... Ndb6 {[%clk
0:01:47.3]} 25. Nb3 {[%clk 0:01:30.1]} 25... Nc4 {[%clk 0:01:44.8]} 26. Qd4+
{[%clk 0:01:28.6]} 26... Kg8 {[%clk 0:01:42.6]} 27. Re1 {[%clk 0:01:26.7]} 27...
Qf8 {[%clk 0:01:39]} 28. h4 {[%clk 0:01:10.1]} 28... Qxb4 {[%clk 0:01:24.7]} 29.
h5 {[%clk 0:01:11.1]} 29... Qc3 {[%clk 0:01:24.9]} 30. hxg6 {[%clk 0:01:07.6]}
30... hxg6 {[%clk 0:01:25.6]} 31. Rec1 {[%clk 0:00:55.6]} 31... Qxd4 {[%clk
0:01:21]} 32. Nxd4 {[%clk 0:00:57.5]} 32... b4 {[%clk 0:01:19.1]} 33. Nc2 {[%clk
0:00:40.3]} 33... Nd2 {[%clk 0:01:11.7]} 34. Ra1 {[%clk 0:00:36.7]} 34... b3
{[%clk 0:01:11.4]} 35. axb3 {[%clk 0:00:27.8]} 35... Nxb3 {[%clk 0:01:11.3]} 36.
Ba6 {[%clk 0:00:29.2]} 36... Rc3 {[%clk 0:00:59.1]} 37. Rcb1 {[%clk 0:00:29.4]}
37... Rxc2 {[%clk 0:00:25.8]} 38. Rxa4 {[%clk 0:00:29]} 38... Rc1+ {[%clk
0:00:20.1]} 39. Rxc1 {[%clk 0:00:29.1]} 39... Nxc1 {[%clk 0:00:22]} 40. Ra1
{[%clk 0:00:28.8]} 40... Nb3 {[%clk 0:00:23]} 41. Rb1 {[%clk 0:00:29.4]} 41...
d4 {[%clk 0:00:20.8]} 42. Bc4 {[%clk 0:00:29]} 42... d3 {[%clk 0:00:22.1]} 43.
Rxb3 {[%clk 0:00:26.6]} 43... Rxb3 {[%clk 0:00:17.9]} 44. Bxb3 {[%clk
0:00:28.5]} 44... d2 {[%clk 0:00:19.4]} 45. Kf1 {[%clk 0:00:29.6]} 45... g5
{[%clk 0:00:20.2]} 46. Ke2 {[%clk 0:00:30.8]} 46... Kg7 {[%clk 0:00:22.1]} 47.
Kxd2 {[%clk 0:00:32]} 1-0

[Event "*** Titled Tuesday Blitz"]
[Site "Chess.com"]
[Date "2019.01.01"]
[Round "1"]
[White "MateusViageiro"]
[Black "iLuusions"]
[Result "0-1"]
[WhiteElo "2222"]
[BlackElo "2572"]
[TimeControl "180+2"]
[EndTime "13:09:22 PST"]
[Termination "iLuusions won by checkmate"]

1. e4 {[%clk 0:03:00]} 1... c5 {[%clk 0:02:25.6]} 2. Nf3 {[%clk 0:02:59.6]} 2...
d6 {[%clk 0:02:26.2]} 3. d4 {[%clk 0:03:00.3]} 3... cxd4 {[%clk 0:02:28.1]} 4.
Nxd4 {[%clk 0:02:59.2]} 4... Nf6 {[%clk 0:02:28.8]} 5. Nc3 {[%clk 0:03:00.1]}
5... a6 {[%clk 0:02:30.7]} 6. f3 {[%clk 0:02:59.1]} 6... e6 {[%clk 0:02:30.3]}
7. Be3 {[%clk 0:02:59.1]} 7... Qc7 {[%clk 0:02:31.5]} 8. Qd2 {[%clk 0:02:47.9]}
8... b5 {[%clk 0:02:29.5]} 9. O-O-O {[%clk 0:02:47.6]} 9... Nbd7 {[%clk
0:02:29.8]} 10. Kb1 {[%clk 0:02:43.8]} 10... Bb7 {[%clk 0:02:27.3]} 11. Qe1
{[%clk 0:02:16.2]} 11... Nb6 {[%clk 0:02:26.1]} 12. Nb3 {[%clk 0:02:10.9]} 12...
Rc8 {[%clk 0:02:24.7]} 13. Na5 {[%clk 0:02:08]} 13... Ba8 {[%clk 0:02:25.6]} 14.
Qf2 {[%clk 0:02:07.3]} 14... Nfd7 {[%clk 0:02:26.2]} 15. Rc1 {[%clk 0:01:53]}
15... d5 {[%clk 0:02:16.9]} 16. exd5 {[%clk 0:01:51.1]} 16... Bb4 {[%clk
0:02:17.5]} 17. dxe6 {[%clk 0:01:48.5]} 17... fxe6 {[%clk 0:02:17.8]} 18. Nb3
{[%clk 0:01:46.8]} 18... Bxc3 {[%clk 0:02:17.5]} 19. bxc3 {[%clk 0:01:47.9]}
19... O-O {[%clk 0:02:16.4]} 20. Bd3 {[%clk 0:01:41.3]} 20... Na4 {[%clk
0:02:16.6]} 21. Qh4 {[%clk 0:01:21.7]} 21... Nf6 {[%clk 0:02:16.4]} 22. Bd2
{[%clk 0:01:15.5]} 22... h6 {[%clk 0:02:03.1]} 23. Qg3 {[%clk 0:01:15.2]} 23...
e5 {[%clk 0:01:58.2]} 24. Rhe1 {[%clk 0:01:10]} 24... Rce8 {[%clk 0:01:51.7]}
25. Qf2 {[%clk 0:01:01.3]} 25... Nd5 {[%clk 0:01:52.4]} 26. Ka1 {[%clk
0:00:53.4]} 26... Ndxc3 {[%clk 0:01:52.2]} 27. Qg3 {[%clk 0:00:52.8]} 27... b4
{[%clk 0:01:40.8]} 28. Qg6 {[%clk 0:00:50.6]} 28... e4 {[%clk 0:01:36.1]} 29.
Bxa6 {[%clk 0:00:31.8]} 29... Qe5 {[%clk 0:01:24.5]} 30. Bc4+ {[%clk 0:00:30.2]}
30... Kh8 {[%clk 0:01:25]} 31. f4 {[%clk 0:00:31]} 31... Qe7 {[%clk 0:01:20.5]}
32. Bb5 {[%clk 0:00:29.7]} 32... Rc8 {[%clk 0:01:14.2]} 33. Bxa4 {[%clk
0:00:27.5]} 33... Nxa4 {[%clk 0:01:15.2]} 34. Qa6 {[%clk 0:00:28]} 34... Bc6
{[%clk 0:01:12.4]} 35. Qc4 {[%clk 0:00:24.6]} 35... Qf6+ {[%clk 0:01:02]} 36.
Qd4 {[%clk 0:00:25.3]} 36... Nc3 {[%clk 0:00:55.5]} 37. Qxf6 {[%clk 0:00:21]}
37... Rxf6 {[%clk 0:00:56.3]} 38. Kb2 {[%clk 0:00:22.9]} 38... Bb7 {[%clk
0:00:52.4]} 39. g3 {[%clk 0:00:20.7]} 39... Ra6 {[%clk 0:00:52.1]} 40. Ra1
{[%clk 0:00:20.7]} 40... Na4+ {[%clk 0:00:53.2]} 41. Kb1 {[%clk 0:00:21.1]}
41... Nc3+ {[%clk 0:00:54.5]} 42. Kb2 {[%clk 0:00:22.1]} 42... Bd5 {[%clk
0:00:49.2]} 43. a3 {[%clk 0:00:22.8]} 43... Na4+ {[%clk 0:00:36]} 44. Kb1 {[%clk
0:00:23.6]} 44... Nc3+ {[%clk 0:00:34.6]} 45. Kb2 {[%clk 0:00:24.7]} 45... Na4+
{[%clk 0:00:34.2]} 46. Kb1 {[%clk 0:00:26]} 46... Rac6 {[%clk 0:00:34.7]} 47.
axb4 {[%clk 0:00:26.4]} 47... Rxc2 {[%clk 0:00:35]} 48. Nc1 {[%clk 0:00:18.9]}
48... Rb2# {[%clk 0:00:35.4]} 0-1